[Event "AI Cup Div-1 2023"]
[Site "Online"]
[Date "2023.09.26"]
[Round "2.3"]
[White "Carlsen, Magnus"]
[Black "Nepomniachtchi, Ian"]
[Result "1-0"]
[Annotator "TA"]
[ECO "C42"]
[WhiteElo "2839"]
[BlackElo "2771"]
[PlyCount "93"]
[EventDate "2023.09.18"]
[EventType "k.o."]
[EventCountry "NET"]
[SourceTitle "playchess.com"]
[Source "ChessBase"]
[SourceQuality "1"]
[TimeControl "900+3"]

{[%evp 20,93,10,11,20,11,14,8,18,11,10,10,14,15,23,12,10,6,18,10,20,24,12,8,24,0,44,31,28,32,47,45,39,49,49,22,23,25,34,0,82,88,89,81,87,87,95,95,132,131,394,394,394,378,387,387,377,349,472,448,468,468,443,426,432,408,379,389,800,791,727,684,29983,29984,29984,29985]} 1. e4 {[%emt 0:00:03]} e5 {[%emt 0:00:03]} 2. Nf3 {[%emt 0:00:02]} Nf6 {[%emt 0:00:01]} 3. Nxe5 {[%emt 0:00:01]} d6 {[%emt 0:00:01]} 4. Nf3 {[%emt 0:00:00]} Nxe4 {[%emt 0:00:00]} 5. d4 {[%emt 0:00:00]} d5 {[%emt 0:00:01]} 6. Bd3 {[%emt 0:00:00]} Bd6 {[%emt 0:00:01]} 7. O-O {[%emt 0:00:01]} O-O {[%emt 0:00:01]} 8. c4 {[%emt 0:00:01]} c6 {[%emt 0:00:01]} 9. Re1 {[%emt 0:00:02]} Bf5 {[%emt 0:00:02]} 10. Nc3 {[%emt 0:00:00]} (10. Qb3 Qd7 11. Nc3 Nxc3 12. Bxf5 Qxf5 13. bxc3 b6 14. cxd5 cxd5 15. Qb5 Qd7 16. a4 Qxb5 17. axb5 a5 18. Nh4 g6 19. g4 Nd7 20. Ng2 Rfc8 21. Bf4 Bxf4 22. Nxf4 Rxc3 23. Nxd5 Rd3 {½-½ Carlsen,M (2855)-Nepomniachtchi,I (2782) World-ch Carlsen-Nepomniachtchi 2021 (4)}) 10... Nxc3 {[%emt 0:00:37]} 11. bxc3 {[%emt 0:00:00]} Bxd3 {[%emt 0:00:14] C42: Petroff Defence: 3 Nxe5 and unusual White 3rd moves.} 12. Qxd3 {[%emt 0:00:00] With the idea Ng5.} dxc4 {[%emt 0:00:19]} 13. Qxc4 {[%emt 0:00:00]} Nd7 {[%emt 0:01:05] The position is equal.} 14. Qb3 {[%emt 0:00:04]} Qc7 {[%emt 0:00:32]} 15. c4 {[%emt 0:00:05] Hoping for c5.} Rfe8 {[%emt 0:00:07]} 16. g3 $5 {[%emt 0:00:04][%mdl 4] Exploring less charted territory.} b6 {[%emt 0:00:15]} 17. Bb2 {[%emt 0:00:49] [#]} Bf8 $146 {[%emt 0:00:41]} ({Predecessor:} 17... c5 18. d5 Ne5 19. Nxe5 Bxe5 20. Qb5 Kf8 21. Kg2 Bd4 22. Qb3 Rxe1 23. Rxe1 Re8 24. Rxe8+ Kxe8 25. Bxd4 cxd4 {1-0 Alekseev,E (2614)-Paravyan,D (2551) St Petersburg rapid 2017 (6)}) 18. a4 {[%emt 0:00:07][%cal Ba2a4,Ba4a5,Ba5a6,Ba6a7][%mdl 32]} a6 {[%emt 0:00:13]} 19. Kg2 {[%emt 0:00:07]} h6 {[%emt 0:00:02]} 20. Rxe8 {[%emt 0:00:42]} Rxe8 {[%emt 0:00:01]} 21. Bc1 {[%emt 0:00:06]} Rb8 {[%emt 0:00:13]} 22. Qc2 {[%emt 0:01:29]} Re8 {[%emt 0:00:57] [#]} 23. a5 $1 {[%emt 0:01:52]} b5 {[%emt 0:00:12]} 24. cxb5 {[%emt 0:00:01]} axb5 {[%emt 0:00:00]} 25. Bf4 {[%emt 0:00:08]} Bd6 {[%emt 0:00:19]} 26. Bxd6 {[%emt 0:00:05]} Qxd6 {[%emt 0:00:00]} 27. a6 {[%emt 0:00:17]} (27. Rc1 $5 {[%cal Rc2c6]}) 27... Ra8 $1 {[%emt 0:00:03]} 28. a7 $36 {[%emt 0:00:08][%mdl 2048] Black is under pressure.} Qc7 {[%emt 0:00:59]} 29. Ra6 {[%emt 0:00:18][%cal Ba1a6,Ba6c6,Bc6c8][%mdl 32]} Nf8 {[%emt 0:02:22]} (29... Rxa7 $2 30. Rxc6 Qb7 31. Rc8+ Nf8 32. Qc5 $16) (29... c5 $1 $11 {remains equal.}) 30. Qc5 $16 {[%emt 0:01:41]} Ne6 {[%emt 0:01:19]} 31. Rxc6 {[%emt 0:01:00]} Qb7 {[%emt 0:00:01]} 32. Qb6 {[%emt 0:02:23]} Rxa7 {[%emt 0:00:03]} 33. d5 $1 {[%emt 0:00:03][%cal Bd4d5,Bd5d6,Bd6d7][%mdl 32]} Nf8 {[%emt 0:00:10]} 34. Qc5 $1 {[%emt 0:00:26] And now Rc8 would win. White has more active pieces.} Nd7 $2 {[%emt 0:01:02][%mdl 8192] Black cannot hold the game after this.} (34... Ng6 $16 35. d6 Ra4) 35. Rc8+ $18 {[%emt 0:01:07]} Kh7 {[%emt 0:00:03]} 36. Qc2+ {[%emt 0:00:01]} g6 {[%emt 0:00:01][%cal Ob5b4]} 37. Qc3 {[%emt 0:00:05][%csl Gc8][%cal Rc3h8] Wards off b4} Nf6 {[%emt 0:00:01] [#]} 38. d6 $1 {[%emt 0:00:05] Black must now prevent Rc7.} b4 {[%emt 0:00:16]} 39. Qc7 {[%emt 0:00:23] Threatens to win with Qd8.} g5 {[%emt 0:02:21] [#]} 40. Qxb7 $1 {[%emt 0:00:30][%mdl 64] Remove Defender} Rxb7 {[%emt 0:00:02][%mdl 4096] Endgame KRN-KRN} 41. Rc7 {[%emt 0:00:01]} Rb5 {[%emt 0:00:11]} 42. Rxf7+ {[%emt 0:00:05]} Kg6 {[%emt 0:00:02]} 43. d7 {[%emt 0:00:00]} Rd5 $2 {[%emt 0:00:02] [#]} (43... Nxd7 44. Rxd7 b3 45. Rd6+ Kg7) 44. Ne5+ $1 {[%emt 0:00:11][%mdl 576] Promotion} Kf5 {[%emt 0:00:01] [#]} 45. Ng4 $1 {[%emt 0:00:01][%mdl 576] Deflection} Kxg4 {[%emt 0:00:24]} (45... Rxd7 46. Rxf6+) 46. Rxf6 {[%emt 0:00:01]} Kh5 {[%emt 0:00:10]} 47. h3 {[%emt 0:00:02] Weighted Error Value: White=0.03 (flawless) /Black=0.38} 1-0

[Event "AI Cup Div-1 2023"]
[Site "Online"]
[Date "2023.09.26"]
[Round "2.3"]
[White "Vachier-Lagrave, Maxime"]
[Black "Mamedyarov, Shakhriyar"]
[Result "1-0"]
[Annotator "TA"]
[ECO "C72"]
[WhiteElo "2727"]
[BlackElo "2734"]
[PlyCount "85"]
[EventDate "2023.09.18"]
[EventType "k.o."]
[EventCountry "NET"]
[SourceTitle "playchess.com"]
[Source "ChessBase"]
[SourceQuality "1"]
[TimeControl "900+3"]

{[%evp 10,85,35,20,67,65,56,59,79,75,71,31,36,41,50,39,53,35,43,42,46,47,74,61,167,154,146,113,189,181,181,122,120,104,106,68,67,75,205,94,160,146,163,66,300,304,467,227,250,246,227,32,411,296,455,436,431,414,444,304,431,372,338,320,307,289,363,155,459,447,404,377,576,584,1646,1409,2030,1950]} 1. e4 {[%emt 0:00:03] Edouard,Romain} e5 {[%emt 0:00:04]} 2. Nf3 {[%emt 0:00:01]} Nc6 {[%emt 0:00:00]} 3. Bb5 {[%emt 0:00:00]} a6 {[%emt 0:00:02]} 4. Ba4 {[%emt 0:00:01]} d6 {[%emt 0:00:01]} 5. O-O {[%emt 0:00:06]} Bd7 {[%emt 0:00:06]} 6. c4 {[%emt 0:00:12]} g5 {[%emt 0:00:23] C72: Ruy Lopez: Deferred Steinitz: 5 0-0.} (6... Nf6 $11) 7. d4 $14 {[%emt 0:00:14][%cal Bd2d4,Bd4d5][%mdl 32]} g4 {[%emt 0:00:04]} 8. d5 $1 {[%emt 0:00:01]} Nce7 {[%emt 0:01:02] White is slightly better.} 9. Nh4 {[%emt 0:01:01]} b5 {[%emt 0:00:53]} 10. cxb5 {[%emt 0:00:39]} axb5 {[%emt 0:00:00]} 11. Bb3 {[%emt 0:00:03]} Bg7 {[%emt 0:00:29] [#]} 12. g3 $146 {[%emt 0:00:40]} (12. f3 $5 {[%cal Rf3g4]}) ({Predecessor:} 12. f3 h5 13. Bg5 Nf6 14. Qe1 Nh7 15. Bd2 Bf6 16. Qf2 Rg8 17. f4 g3 18. hxg3 Bxh4 19. fxe5 {1-0 Edouard,R (2641)-Sedlak,N (2557) EU-chT 22nd Batumi 2019 (8.2)}) 12... h5 {[%emt 0:01:21]} 13. Be3 {[%emt 0:01:16]} Bf6 {[%emt 0:02:23]} 14. Ng2 {[%emt 0:00:03]} Bg7 {[%emt 0:00:07]} 15. Nd2 {[%emt 0:00:44]} f5 {[%emt 0:00:09]} 16. f4 {[%emt 0:00:57]} gxf3 {[%emt 0:01:21]} ({Black should play} 16... exf4 $14 17. Nxf4 Bxb2) 17. Qxf3 $18 {[%emt 0:00:19]} Nf6 {[%emt 0:00:03][%cal Oh5h4]} 18. Nh4 {[%emt 0:00:25][%cal Re4f5]} f4 {[%emt 0:01:05]} 19. gxf4 {[%emt 0:00:03]} Ng4 {[%emt 0:00:03]} 20. fxe5 {[%emt 0:00:49]} (20. Kh1 $1 $18) 20... Nxe5 $16 {[%emt 0:00:01]} 21. Qg3 {[%emt 0:01:05]} Rg8 {[%emt 0:00:09][%cal Og7f6]} 22. Kh1 {[%emt 0:00:13] Strongly threatening Bg5. White is more active.} Bf6 {[%emt 0:00:39][%mdl 64] Prevents Bg5. Discovered Attack} 23. Qe1 {[%emt 0:01:41]} Ng4 {[%emt 0:00:34]} (23... Bxh4 $16 24. Qxh4 N7g6) 24. Bf4 {[%emt 0:00:09]} (24. h3 $18 {and White stays clearly on top.} Nc8 25. Nf5 (25. hxg4 Bxh4 26. Bf2 hxg4 $14) 25... Bxb2 26. hxg4 Bxa1 27. Nh6 (27. Qxa1 Bxf5 28. g5 Bg6 $11) (27. gxh5 Be5 $11)) 24... Ng6 {[%emt 0:00:44]} (24... Bxb2 $142 25. Rb1 Bc3) 25. Nxg6 {[%emt 0:00:04]} Rxg6 {[%emt 0:00:00]} 26. Nf3 {[%emt 0:00:51]} (26. e5 $1 $18 {[%cal Re5f6]} Nxe5 27. Bd1) 26... Bxb2 {[%emt 0:01:30] [#]} (26... Qe7 $1 $14) 27. e5 $1 $18 {[%emt 0:01:15]} Qe7 {[%emt 0:00:02] [#]} (27... Bxa1 {was necessary.} 28. exd6+ {[%mdl 64] Discovered Attack} Kf7) 28. e6 {[%emt 0:00:08]} Bxa1 {[%emt 0:00:08]} 29. Qxa1 {[%emt 0:00:26] Black must now prevent Bc2.} (29. exd7+ Kxd7 30. Qxa1 Qe2 $11) 29... O-O-O {[%emt 0:00:10][%cal Od8f8]} 30. Bc2 $2 {[%emt 0:00:28]} ({White should try} 30. exd7+ $18 Qxd7 31. Bc2) 30... Rgg8 $2 {[%emt 0:00:31][%mdl 8192]} (30... Rxe6 $1 $14 31. dxe6 Qxe6) 31. exd7+ {[%emt 0:00:06]} Qxd7 {[%emt 0:00:00]} (31... Rxd7 $142 32. Bf5 Qe2) 32. Nd4 {[%emt 0:00:16]} Rdf8 {[%emt 0:00:21] Prevents Bf5} 33. Ne6 {[%emt 0:00:17] Repels Qg7} Rf7 {[%emt 0:00:01] Black is weak on the dark squares} 34. Be4 {[%emt 0:00:30]} c5 {[%emt 0:00:22]} (34... Nf6 {keeps fighting.}) 35. Qe1 {[%emt 0:00:32]} (35. dxc6 $2 Qxe6 36. Qd4 Rgf8 $19) 35... Qa7 {[%emt 0:00:10]} 36. Qe2 {[%emt 0:00:15]} (36. Bxd6 Rxf1+ 37. Qxf1 Qxa2) 36... c4 {[%emt 0:00:19]} 37. h3 {[%emt 0:00:01]} (37. Bxd6 Rxf1+ 38. Kg2 Rf2+ 39. Kg3 Rxe2 40. Bc5 Nxh2+ 41. Kh3 Qf7) 37... Ne3 {[%emt 0:00:21]} 38. Rf2 {[%emt 0:00:04]} (38. Qxe3 $2 Qxe3 39. Bxe3 Rxf1+ 40. Kh2 Re1 $19) (38. Re1 $18 {is the precise move to win.} Nf5 39. Ng5 (39. Qxh5 $2 Qf2 $19)) 38... Nf5 {[%emt 0:00:10]} (38... Rxf4 $16 {is more resistant.} 39. Nxf4 (39. Rxf4 Nxd5 40. Qf2 Qxf2 $16) 39... Qd4) 39. Rg2 {[%emt 0:00:10]} Rxg2 {[%emt 0:00:16]} 40. Bxg2 {[%emt 0:00:12] This pair of bishops is nice.} ({Not} 40. Qxg2 Ne7 41. Qf3 (41. Bxd6 Rf2 $18) 41... Qa5 $18) 40... h4 {[%emt 0:00:42]} (40... Nh4 {might work better.} 41. Qb2 (41. Bxd6 Qf2 $11) 41... Nxg2 42. Qxb5 (42. Kxg2 Qa5 $18) (42. Qxg2 Rxf4 43. Nxf4 Qd4 $16) 42... Nxf4 43. Qe8+ (43. Qxc4+ $2 {perishes.} Kb8 $19) 43... Kb7 44. Qxf7+ Kb6 45. Qxf4 Qa3 46. Qxc4 Qxh3+ 47. Kg1 Qg3+ 48. Kf1 h4) 41. Qg4 {[%emt 0:00:03] Qg8+ would be deadly. White is clearly winning.} Qe7 {[%emt 0:00:15]} 42. Qg8+ {[%emt 0:00:02]} Kb7 {[%emt 0:00:03] [#]} 43. Qxf7 $3 {[%emt 0:00:05][%mdl 576] Decoy. Ingenious play by Vachier-Lagrave!   Weighted Error Value: White=0.50/Black=0.63} 1-0

[Event "AI Cup Div-1 2023"]
[Site "Online"]
[Date "2023.09.26"]
[Round "2.4"]
[White "Nepomniachtchi, Ian"]
[Black "Carlsen, Magnus"]
[Result "1/2-1/2"]
[Annotator "TA"]
[ECO "B95"]
[WhiteElo "2771"]
[BlackElo "2839"]
[PlyCount "257"]
[EventDate "2023.09.18"]
[EventType "k.o."]
[EventCountry "NET"]
[SourceTitle "playchess.com"]
[Source "ChessBase"]
[SourceQuality "1"]
[TimeControl "900+3"]

{[%evp 12,257,11,19,21,11,20,-30,-31,-28,-10,-31,-14,-42,43,-40,60,55,58,64,66,47,60,60,64,56,258,269,285,274,290,281,267,105,144,108,525,493,515,496,483,168,171,152,589,597,562,585,537,420,403,383,387,429,404,395,422,397,425,419,431,432,403,366,343,302,381,399,392,366,354,366,398,385,378,360,358,237,244,212,402,375,328,87,80,0,334,254,1816,1734,2224,1022,894,866,529,33,25,23,12849,12849,27999,27999,27999,27999,27999,27999,27999,27999,27999,27999,27999,27999,27999,27999,27999,27999,27999,27999,27999,27999,27999,27999,27999,27999,27999,27999,27999,27999,27999,0,27999,27999,27999,27999,27999,27999,27999,27999,27999,27999,27999,27999,27999,27999,27999,27999,27999,27999,27999,27999,27999,27999,27999,27999,27999,27999,27999,27999,27999,27999,27999,27999,27999,27999,27999,27999,27999,27999,27999,27999,27999,27999,27999,27999,27999,27999,27999,27999,27999,27999,27999,27999,27999,27999,27999,27999,27999,27999,27999,27999,27999,27999,27999,27999,27999,27999,27999,27999,27999,27999,27999,27999,27999,27999,27999,27999,27999,27999,27999,27999,27999,27999,27999,27999,27999,27999,27999,27999,27999,27999,27999,27999,27999,27999,27999,27999,27999,27999,27999,27999,27999,27999,27999,27999,27999,27999,27999,27999,27999,27999,27999,27999,27999,27999,27999,27999,27999,27999]} 1. e4 {[%emt 0:00:03]} c5 {[%emt 0:00:04]} 2. Nf3 {[%emt 0:00:03]} d6 {[%emt 0:00:01]} 3. d4 {[%emt 0:00:01]} cxd4 {[%emt 0:00:00]} 4. Nxd4 {[%emt 0:00:00]} Nf6 {[%emt 0:00:01]} 5. Nc3 {[%emt 0:00:00]} a6 {[%emt 0:00:01]} 6. Bg5 {[%emt 0:00:01]} e6 {[%emt 0:00:02]} 7. Qf3 {[%emt 0:00:01]} h6 {[%emt 0:00:15] B95: Sicilian Najdorf: 6 Bg5 e6, unusual White 7th moves.} 8. Bd2 {[%emt 0:00:09]} Qc7 {[%emt 0:00:51]} 9. g4 {[%emt 0:00:18]} (9. Bd3 $142) 9... b5 $11 {[%emt 0:00:15] Threatens to win with ...b4. Black has an edge.} 10. a3 {[%emt 0:00:23]} Bb7 {[%emt 0:00:20] [#]} 11. O-O-O $146 {[%emt 0:00:41]} (11. h4 $5 {[%cal Rg4g5]}) ({Predecessor:} 11. Bg2 Nbd7 12. h4 Ne5 13. Qe2 Qc4 14. Qxc4 Nxc4 15. g5 hxg5 16. hxg5 Rxh1+ 17. Bxh1 {0-1 Cardoso Cardoso,J (2486)-Ortiz Suarez,I (2517) Carlos Torre Memorial op 32nd 2022 (6)}) 11... Nbd7 {[%emt 0:00:08]} 12. Qe2 {[%emt 0:00:52]} Ne5 {[%emt 0:00:53]} ({Black should play} 12... d5 $15) 13. f3 {[%emt 0:00:16]} (13. f4 $1 $14) 13... g5 {[%emt 0:00:41]} ({Black should try} 13... Rc8 $15) 14. h4 $14 {[%emt 0:00:06]} Rg8 {[%emt 0:00:01]} 15. hxg5 {[%emt 0:00:33]} hxg5 {[%emt 0:00:01]} 16. Kb1 {[%emt 0:00:19]} Be7 {[%emt 0:00:11]} 17. Rh6 {[%emt 0:00:12]} Nfd7 {[%emt 0:00:14]} 18. Qh2 {[%emt 0:00:20]} Bf6 $2 {[%emt 0:00:53] [#]} (18... Nc5 $14) 19. Ncxb5 $1 $18 {[%emt 0:00:59][%mdl 512]} axb5 {[%emt 0:00:02]} 20. Nxb5 {[%emt 0:00:01]} Qb6 {[%emt 0:01:42] White must now prevent ...Ba6.} 21. Bb4 {[%emt 0:01:19]} Be7 {[%emt 0:00:04]} 22. Nxd6+ $2 {[%emt 0:00:12]} (22. Bxd6 $18 {is the precise move to win.} Bxd6 23. Nxd6+ Kf8 24. Nxf7 Kxf7 25. f4 Bxe4 26. fxe5) 22... Bxd6 $16 {[%emt 0:00:03]} 23. Rxd6 {[%emt 0:00:01]} Qc7 {[%emt 0:00:40][%mdl 8192] [#]} (23... Bc6 $16) 24. Rhxe6+ $1 {[%emt 0:02:46][%mdl 512]} fxe6 {[%emt 0:00:01]} 25. Rxe6+ {[%emt 0:00:00]} Kd8 {[%emt 0:00:02] ...Kc8 would be deadly.} 26. Qh7 $2 {[%emt 0:00:03] Wards off Kc8} (26. Bd6 Qa5 27. Qh7) 26... Nf6 $18 {[%emt 0:01:13]} 27. Qf5 {[%emt 0:00:57]} (27. Be7+ Kc8 28. Rxf6 Re8 29. Qf5+ Qd7 30. Qxe5 Qxe7 31. Qxg5 Kb8) 27... Nfd7 {[%emt 0:00:33]} (27... Ned7 $16 {is tougher.}) 28. Bd6 $1 {[%emt 0:00:20]} Qxd6 {[%emt 0:00:45]} 29. Rxd6 {[%emt 0:00:03]} Kc7 {[%emt 0:00:00]} 30. Rf6 {[%emt 0:00:57][%mdl 64] Deflection} Raf8 {[%emt 0:02:22]} 31. Rxf8 {[%emt 0:00:03]} Rxf8 {[%emt 0:00:00]} 32. Qxg5 {[%emt 0:00:01] Be2 is the strong threat.} Rxf3 {[%emt 0:00:05]} 33. Bb5 {[%emt 0:00:03]} Bxe4 {[%emt 0:00:10]} 34. Bxd7 {[%emt 0:00:04]} (34. Qe7 Rf2 35. Ba4 (35. Bxd7 Bxc2+ 36. Ka2 Nxd7 $18) 35... Bd5 $18) 34... Nxd7 {[%emt 0:00:03]} 35. Qa5+ {[%emt 0:00:21]} Kc8 {[%emt 0:00:42]} 36. Qb4 {[%emt 0:00:14]} Rf4 {[%emt 0:00:21][%cal Oe4c2]} 37. Qc3+ {[%emt 0:00:24]} Kd8 {[%emt 0:00:08]} 38. g5 {[%emt 0:00:13]} Rf2 {[%emt 0:00:12]} 39. Qe3 {[%emt 0:00:34][%cal Oe3e4]} Rf1+ {[%emt 0:00:06]} 40. Ka2 {[%emt 0:00:03]} Bxc2 {[%emt 0:00:00]} 41. b4 {[%emt 0:00:15]} Bg6 {[%emt 0:00:24]} 42. b5 {[%emt 0:00:05]} Rf5 {[%emt 0:00:41]} 43. a4 {[%emt 0:00:03] Hoping for b6.} Re5 {[%emt 0:00:01]} 44. Qd4 {[%emt 0:00:35] And now b6 would win.} Re4 {[%emt 0:00:21]} 45. Qd6 {[%emt 0:00:14]} Bf7+ {[%emt 0:00:17]} (45... Bf5 46. Ka3 Re3+ 47. Kb4 Re6) 46. Ka3 $1 {[%emt 0:00:02]} Re3+ {[%emt 0:00:11]} 47. Kb4 $2 {[%emt 0:00:01]} (47. Kb2 $1 $18) 47... Re4+ $16 {[%emt 0:00:02]} 48. Ka3 $2 {[%emt 0:00:28][%mdl 8192]} (48. Ka5 $16) 48... Re3+ $18 {[%emt 0:00:02]} 49. Kb2 $1 {[%emt 0:00:00]} Re5 $2 {[%emt 0:00:48]} (49... Re2+ 50. Kc3 Re3+ 51. Kd4 Re2) 50. b6 {[%emt 0:00:08]} (50. g6 Re6 51. Qg3 Bxg6 $18) 50... Bd5 {[%emt 0:00:24]} 51. g6 {[%emt 0:00:09]} (51. Qc7+ $142 Ke8 52. b7 Rxg5 53. b8=Q+ Nxb8 54. Qxb8+ Kd7 55. Qb5+ Ke7 56. a5) 51... Re6 {[%emt 0:00:03] [#]} 52. Qc7+ $1 {[%emt 0:00:35]} Ke7 {[%emt 0:00:02] [#]} 53. b7 $2 {[%emt 0:00:01]} (53. a5 $1 $18) 53... Bxb7 $1 $14 {[%emt 0:00:01]} 54. g7 {[%emt 0:00:01] Really sharp!} Rg6 $2 {[%emt 0:00:04][%mdl 8192] White stays focused until the end.} 55. Qxb7 $18 {[%emt 0:00:04]} Rxg7 {[%emt 0:00:04][%mdl 4096] Endgame KQ-KRN} 56. a5 {[%emt 0:00:04][%cal Ba4a5,Ba5a6][%mdl 32]} Rg6 {[%emt 0:00:04]} 57. Kc2 {[%emt 0:00:03]} Kd8 {[%emt 0:00:04]} 58. Kc3 {[%emt 0:00:21]} Rg3+ {[%emt 0:00:03]} 59. Kb2 {[%emt 0:00:05]} Rg6 {[%emt 0:00:09]} 60. Kc2 {[%emt 0:00:02]} Rg5 {[%emt 0:00:02]} 61. a6 {[%emt 0:00:06]} Rc5+ {[%emt 0:00:01]} 62. Kd2 {[%emt 0:00:11]} Rc7 {[%emt 0:00:00]} 63. Qa8+ {[%emt 0:00:01]} Rc8 {[%emt 0:00:03]} 64. Qh1 {[%emt 0:00:09]} Rc7 {[%emt 0:00:08]} 65. Qh4+ {[%emt 0:00:02]} Ke8 {[%emt 0:00:01]} 66. Qh5+ {[%emt 0:00:01]} Ke7 {[%emt 0:00:02]} 67. Qg5+ {[%emt 0:00:01]} Kd6 {[%emt 0:00:03]} 68. Qb5 {[%emt 0:00:28]} Ra7 {[%emt 0:00:04]} 69. Kc3 {[%emt 0:00:01]} Kc7 {[%emt 0:00:02]} 70. Kb4 {[%emt 0:00:03]} Kd6 $2 {[%emt 0:00:03][%mdl 8192]} (70... Nb8 $11) 71. Ka5 {[%emt 0:00:01] White mates.} Kc7 {[%emt 0:00:02]} 72. Qb4 {[%emt 0:00:03]} Nb8 {[%emt 0:00:05]} 73. Qb6+ {[%emt 0:00:01]} Kc8 {[%emt 0:00:02]} 74. Qe6+ {[%emt 0:00:07]} ({Stronger than} 74. Qxa7 Nc6+ 75. Kb6 Nxa7 $11) 74... Kc7 {[%emt 0:00:01]} 75. Qc4+ {[%emt 0:00:01]} Kd8 {[%emt 0:00:03]} 76. Kb6 {[%emt 0:00:03]} Rxa6+ {[%emt 0:00:06]} 77. Kb7 {[%emt 0:00:01]} Rc6 {[%emt 0:00:03]} 78. Qd5+ {[%emt 0:00:03]} Ke7 {[%emt 0:00:01]} 79. Kxb8 {[%emt 0:00:01] KQ-KR} Rd6 {[%emt 0:00:01]} 80. Qc5 {[%emt 0:00:01]} Ke6 {[%emt 0:00:02]} 81. Kc7 {[%emt 0:00:02]} Rd5 {[%emt 0:00:04]} 82. Qc4 {[%emt 0:00:02]} Ke5 {[%emt 0:00:03]} 83. Kc6 {[%emt 0:00:01]} Rd6+ {[%emt 0:00:02]} 84. Kc5 {[%emt 0:00:01]} Rd8 {[%emt 0:00:04]} 85. Qe2+ {[%emt 0:00:03]} Kf6 {[%emt 0:00:01]} 86. Qf2+ {[%emt 0:00:01]} Ke6 {[%emt 0:00:02]} 87. Qe3+ {[%emt 0:00:02]} Kf5 {[%emt 0:00:05]} 88. Qh3+ {[%emt 0:00:03]} Ke5 {[%emt 0:00:08]} 89. Qh5+ {[%emt 0:00:02]} Ke6 {[%emt 0:00:00]} 90. Qg6+ {[%emt 0:00:01]} Ke7 {[%emt 0:00:01]} 91. Kc6 {[%emt 0:00:04]} Rf8 {[%emt 0:00:09]} 92. Kd5 {[%emt 0:00:04]} Rf7 {[%emt 0:00:02]} 93. Ke5 {[%emt 0:00:03]} Kf8 {[%emt 0:00:02]} 94. Qh6+ {[%emt 0:00:05]} Ke8 {[%emt 0:00:02]} 95. Qg5 {[%emt 0:00:14]} Kd7 {[%emt 0:00:05]} 96. Qg6 {[%emt 0:00:04]} Ke7 {[%emt 0:00:04]} 97. Qd6+ {[%emt 0:00:04]} Ke8 {[%emt 0:00:01]} 98. Qa3 {[%emt 0:00:01]} ({Worse is} 98. Ke6 Rf6+ 99. Kxf6 $11) 98... Kd7 {[%emt 0:00:04]} 99. Qd6+ {[%emt 0:00:08]} Ke8 {[%emt 0:00:01]} 100. Qb6 {[%emt 0:00:05]} ({Inferior is} 100. Ke6 Rf6+ 101. Kxf6 $11) 100... Re7+ {[%emt 0:00:09]} 101. Kf6 {[%emt 0:00:01]} Rf7+ {[%emt 0:00:01]} 102. Kg6 {[%emt 0:00:01]} Rd7 {[%emt 0:00:00]} 103. Qc6 {[%emt 0:00:03]} Ke7 {[%emt 0:00:02]} 104. Kf5 {[%emt 0:00:01]} Kd8 {[%emt 0:00:05]} 105. Qb6+ {[%emt 0:00:09]} Ke8 {[%emt 0:00:04]} 106. Qc5 {[%emt 0:00:05]} Kf7 {[%emt 0:00:05]} 107. Qe5 {[%emt 0:00:01]} Re7 {[%emt 0:00:01]} 108. Qh8 {[%emt 0:00:03]} Rd7 {[%emt 0:00:02]} 109. Qh1 {[%emt 0:00:04]} Ke7 {[%emt 0:00:05]} 110. Ke5 {[%emt 0:00:02]} Rc7 {[%emt 0:00:07]} 111. Qd5 {[%emt 0:00:02]} Rd7 {[%emt 0:00:02]} 112. Qc6 {[%emt 0:00:03]} Kd8 {[%emt 0:00:04]} 113. Kf6 {[%emt 0:00:00]} Rf7+ {[%emt 0:00:02]} 114. Kg6 {[%emt 0:00:05]} Rc7 {[%emt 0:00:02]} 115. Qa4 {[%emt 0:00:03]} Ke7 {[%emt 0:00:02]} 116. Kf5 {[%emt 0:00:01]} Rc5+ {[%emt 0:00:01]} 117. Ke4 {[%emt 0:00:01]} Kd6 {[%emt 0:00:03]} 118. Qb4 {[%emt 0:00:02]} Kc6 {[%emt 0:00:02]} 119. Kd4 {[%emt 0:00:01]} Rd5+ {[%emt 0:00:01]} 120. Kc4 {[%emt 0:00:00]} Re5 {[%emt 0:00:06]} 121. Qb1 {[%emt 0:00:02]} Rc5+ {[%emt 0:00:02]} 122. Kd4 {[%emt 0:00:01]} Rd5+ {[%emt 0:00:01]} 123. Ke4 {[%emt 0:00:01]} Rb5 {[%emt 0:00:03]} 124. Qa2 {[%emt 0:00:01]} Rc5 {[%emt 0:00:06]} 125. Kd4 {[%emt 0:00:01]} Rb5 {[%emt 0:00:03]} 126. Qe6+ {[%emt 0:00:01]} Kc7 {[%emt 0:00:02]} 127. Kc4 {[%emt 0:00:00]} Rb7 {[%emt 0:00:03]} 128. Kc5 {[%emt 0:00:01]} Kb8 {[%emt 0:00:03]} 129. Qd6+ {[%emt 0:00:04][%mdl 32768] An exciting game.   Weighted Error Value: White=0.40/Black=0.48. An unexpected result.} 1/2-1/2